bitfinex/quotes_BTCUSD_20250829
["timestamp","ask_amount","ask_price","bid_price","bid_amount"]
[1756474626567,6.81641675,110430.0,110420.0,0.00014314]
[1756474626978,6.83566088,110430.0,110420.0,0.00014314]
[1756474627180,8.06301312,110430.0,110420.0,0.00014314]
[1756474627962,8.06301312,110430.0,110390.0,0.0721143]
[1756474627963,1.74851166,110400.0,110390.0,0.0721143]
[1756474628173,1.77985547,110400.0,110390.0,0.07225766]
[1756474628599,1.87328179,110400.0,110390.0,0.00014336]
[1756474629076,1.78498547,110400.0,110390.0,0.00014336]
[1756474629277,1.78188547,110400.0,110390.0,0.00014336]
[1756474629408,1.77985547,110400.0,110390.0,0.00014336]
[1756474629612,1.78188547,110400.0,110390.0,0.00014336]
[1756474629813,1.78185547,110400.0,110390.0,0.00014336]
[1756474630016,0.55450323,110400.0,110390.0,0.00510336]
[1756474630199,1.78185547,110400.0,110390.0,0.18329919]
[1756474630404,1.78185547,110400.0,110390.0,0.00014336]
[1756474630405,1.78998547,110400.0,110390.0,0.00014336]
[1756474630792,1.78688547,110400.0,110390.0,0.00014336]
[1756474631641,1.78698547,110400.0,110390.0,0.00014336]
[1756474631854,1.78388547,110400.0,110390.0,0.00014336]
[1756474632055,1.78388547,110400.0,110390.0,0.00214336]
[1756474632456,0.55250323,110400.0,110390.0,0.18827919]
[1756474632688,1.77985547,110400.0,110390.0,0.18827919]
[1756474632884,1.77985547,110400.0,110390.0,0.18629919]
[1756474633114,1.77985547,110400.0,110390.0,0.18429919]
[1756474633320,1.59869605,110400.0,110390.0,0.18727919]
[1756474633621,1.59870182,110400.0,110390.0,0.18927919]
[1756474633823,0.03134958,110400.0,110390.0,0.18827919]
[1756474634027,1.25870182,110400.0,110390.0,0.25795919]
[1756474634157,1.43986124,110400.0,110390.0,0.25795919]
[1756474634562,1.43986124,110400.0,110390.0,0.25895919]
[1756474634767,1.25870182,110400.0,110390.0,0.25895919]
[1756474634962,1.25870182,110400.0,110390.0,0.25695919]
[1756474635303,1.25870182,110400.0,110390.0,0.26095919]
[1756474635513,1.43986124,110400.0,110390.0,0.25797919]
[1756474635921,1.53018756,110400.0,110390.0,0.07482336]
[1756474636288,1.43986124,110400.0,110390.0,0.25599919]
[1756474636707,1.43986124,110400.0,110390.0,0.07382336]
[1756474636906,1.25870182,110400.0,110390.0,0.25499919]
[1756474637104,1.25870182,110400.0,110390.0,0.25995919]
[1756474638393,0.03134958,110400.0,110390.0,0.34825551]
[1756474639365,0.02507967,110400.0,110390.0,0.36919433]
[1756474639592,1.25243191,110400.0,110390.0,0.36635433]
[1756474639794,1.25243191,110400.0,110390.0,0.25099919]
[1756474639992,1.25871553,110400.0,110390.0,0.25099919]
[1756474640195,1.25871553,110400.0,110390.0,0.00214336]
[1756474640196,1.78522495,110400.0,110390.0,0.00214336]
[1756474640413,1.87352127,110400.0,110390.0,0.00214336]
[1756474640613,1.8826914,110400.0,110390.0,0.00214336]
[1756474640814,6.90199058,110400.0,110390.0,0.00028336]
[1756474641015,0.1812415,110350.0,110340.0,0.06988]
[1756474641246,1.78527703,110350.0,110340.0,0.0002]
[1756474641452,6.89284426,110350.0,110340.0,0.0002]
[1756474641783,8.21842622,110350.0,110340.0,1e-08]
[1756474641989,8.31746542,110350.0,110340.0,1e-08]
[1756474642200,8.31746542,110350.0,110300.0,0.0723143]
[1756474642201,0.52130722,110310.0,110300.0,0.0723143]
[1756474642416,1.77166284,110310.0,110300.0,0.0723143]
[1756474642628,1.77378284,110310.0,110300.0,0.0723143]
[1756474643055,0.5443106,110310.0,110300.0,0.0723143]
[1756474643256,1.43166284,110310.0,110300.0,0.0723143]
[1756474643388,1.43166284,110310.0,110300.0,0.18152366]
[1756474643576,0.02300338,110310.0,110300.0,0.18660366]
[1756474643783,1.22735224,110310.0,110300.0,0.25676046]
[1756474643983,1.24401579,110310.0,110300.0,0.25676046]
[1756474644603,0.01666355,110310.0,110300.0,0.25676046]
[1756474644804,1.24401579,110310.0,110300.0,0.25676046]
[1756474645005,1.24401579,110310.0,110300.0,0.25380046]
[1756474645213,1.24401579,110310.0,110300.0,0.25168046]
[1756474645456,1.33231211,110310.0,110300.0,0.18200046]
[1756474645763,1.24401579,110310.0,110300.0,0.18200046]
[1756474645971,1.42532301,110310.0,110300.0,0.18200046]
[1756474646177,6.77688137,110310.0,110300.0,0.0006768]
[1756474646378,6.89327807,110310.0,110300.0,0.0006768]
[1756474646584,6.90527828,110310.0,110300.0,0.0006768]
[1756474646785,1.74870878,110280.0,110270.0,0.0002]
[1756474646996,1.77161069,110280.0,110270.0,0.0002]
[1756474647194,1.77375069,110280.0,110270.0,0.00034286]
[1756474647402,1.77692239,110280.0,110270.0,0.00034286]
[1756474647767,1.77692239,110280.0,110270.0,0.18679585]
[1756474647768,0.35666355,110280.0,110270.0,0.18679585]
[1756474648013,1.58401579,110280.0,110270.0,0.18679585]
[1756474648418,1.58701579,110280.0,110270.0,0.18679585]
[1756474648822,1.24701579,110280.0,110270.0,0.18679585]
[1756474649029,0.01966355,110280.0,110270.0,0.18679585]
[1756474649204,1.24701579,110280.0,110270.0,0.25651585]
[1756474649685,0.52132392,110300.0,110270.0,0.26558449]
[1756474649893,1.22735224,110280.0,110270.0,0.26558449]
[1756474650102,1.22735224,110280.0,110270.0,0.07514286]
[1756474650315,1.22735224,110280.0,110270.0,0.28938046]
[1756474650743,0.5303901,110300.0,110280.0,0.18134557]
[1756474650945,0.52132366,110300.0,110290.0,0.1813401]
[1756474651147,0.52132366,110300.0,110290.0,0.1803401]
[1756474651354,0.52132366,110300.0,110280.0,0.18430557]
[1756474651531,0.52132366,110300.0,110290.0,0.1813401]
[1756474651943,1.56735224,110300.0,110290.0,0.1813401]
[1756474652565,1.7496759,110300.0,110290.0,0.1813401]
[1756474652769,1.56835224,110300.0,110290.0,0.1843001]
[1756474652983,0.341,110300.0,110290.0,0.1843001]
[1756474653196,1.56835224,110300.0,110290.0,0.1843001]
[1756474653402,1.22835224,110300.0,110290.0,0.1864201]
[1756474654255,1.22835224,110300.0,110270.0,0.66050449]
[1756474654533,0.00226726,110290.0,110280.0,0.18135444]
[1756474654737,0.18360736,110290.0,110280.0,0.18135444]
[1756474654944,0.1813401,110290.0,110270.0,0.26346449]
[1756474655427,0.1813401,110290.0,110270.0,0.07302286]
[1756474655647,6.75629604,110280.0,110270.0,0.00034286]
[1756474655852,6.78212916,110280.0,110270.0,0.00034286]
[1756474656057,6.82374878,110280.0,110270.0,0.00034286]
[1756474656265,6.94636873,110280.0,110270.0,0.00034286]
[1756474656478,6.91826835,110280.0,110270.0,0.00034286]
[1756474656903,6.97358295,110280.0,110270.0,0.00034286]
[1756474657055,6.82997203,110280.0,110270.0,0.00034286]
[1756474658233,6.84417075,110280.0,110270.0,0.00034286]
[1756474658456,6.77127075,110280.0,110270.0,0.00034286]
[1756474658632,6.77444452,110280.0,110270.0,0.00034286]
[1756474658835,6.77744452,110280.0,110270.0,0.00034286]
[1756474659817,0.18142235,110240.0,110230.0,0.0723143]
[1756474660024,1.41071459,110240.0,110230.0,0.0723143]
[1756474660224,1.41071459,110240.0,110230.0,0.0002]
[1756474660784,6.46724919,110240.0,110230.0,0.0002]
[1756474661203,6.46739202,110240.0,110230.0,0.0002]
[1756474661343,6.46739202,110240.0,110230.0,0.0022]
[1756474661557,6.48395344,110240.0,110230.0,0.0022]
[1756474661736,6.48273344,110240.0,110230.0,0.0022]
[1756474661977,6.76741884,110240.0,110230.0,0.0032]
[1756474662623,6.79551922,110240.0,110230.0,0.0032]
[1756474662830,6.79551922,110240.0,110230.0,0.0062]
[1756474663054,5.5381266,110240.0,110230.0,0.0062]
[1756474663287,1.76547884,110240.0,110230.0,0.0062]
[1756474663507,1.76547884,110240.0,110230.0,0.0032]
[1756474664034,1.58405649,110240.0,110230.0,0.1897188]
[1756474664236,1.58405649,110240.0,110230.0,0.1917188]
[1756474664237,1.24405649,110240.0,110230.0,0.1917188]
[1756474665082,1.2440641,110240.0,110230.0,0.1917188]
[1756474665282,1.42548645,110240.0,110230.0,0.1917188]
[1756474665441,1.2440641,110240.0,110230.0,0.1917188]
[1756474666914,0.00014283,110240.0,110230.0,0.1917188]
[1756474667089,0.00014283,110240.0,110230.0,0.30095394]
[1756474668724,0.00014283,110240.0,110230.0,0.64095394]
[1756474668934,0.00014283,110240.0,110230.0,0.63795394]
[1756474669167,1.22735224,110280.0,110270.0,0.18137299]
[1756474669292,0.01666153,110280.0,110270.0,0.36571813]
[1756474671220,1.24401377,110280.0,110270.0,0.25848299]
[1756474671644,1.25028113,110280.0,110270.0,0.25113299]
[1756474671870,1.43163768,110280.0,110270.0,0.25113299]
[1756474672067,1.43163768,110280.0,110270.0,0.25213299]
[1756474672273,1.43163768,110280.0,110270.0,0.07076]
[1756474672481,1.43357768,110280.0,110270.0,0.001]
[1756474672846,1.43357768,110280.0,110270.0,0.004]
[1756474673044,1.93102061,110280.0,110270.0,0.004]
[1756474673275,1.84272429,110280.0,110270.0,0.004]
[1756474673449,1.84272429,110280.0,110270.0,0.006]
[1756474673450,1.81462391,110280.0,110270.0,0.006]
[1756474674067,1.81462391,110280.0,110270.0,0.004]
[1756474674500,1.81462391,110280.0,110270.0,0.005]
[1756474674846,0.18138888,110270.0,110250.0,0.26345973]
[1756474675045,1.22735224,110260.0,110250.0,0.26345973]
[1756474675339,1.43167058,110260.0,110250.0,0.26556973]
[1756474675544,1.43174246,110260.0,110250.0,0.26556973]
[1756474675861,1.25035302,110260.0,110250.0,0.25649944]
[1756474676632,0.22242915,110300.0,110270.0,0.18137299]
[1756474676798,1.40870878,110280.0,110270.0,0.18151635]
[1756474677026,1.22735224,110280.0,110270.0,0.18686635]
[1756474677582,1.40870878,110280.0,110270.0,0.18686635]
[1756474678882,1.40870878,110280.0,110270.0,0.18678035]
[1756474679088,0.5213401,110290.0,110280.0,0.18135654]
[1756474679214,1.74869234,110290.0,110280.0,0.18135654]
[1756474679427,0.5213401,110290.0,110280.0,0.22006923]
[1756474679676,1.22735224,110300.0,110290.0,0.1813401]
[1756474679894,1.2357204,110300.0,110290.0,0.1866901]
[1756474680304,1.22735224,110300.0,110290.0,0.1866901]
[1756474680508,1.22735224,110300.0,110290.0,0.00535]
[1756474680723,0.1813401,110290.0,110280.0,0.001]
[1756474680925,1.41898413,110300.0,110280.0,0.18235654]
[1756474680926,0.18326366,110300.0,110280.0,0.18235654]
[1756474681131,1.2296195,110290.0,110280.0,0.18235654]
[1756474681365,1.22735224,110290.0,110280.0,0.18770654]
[1756474681565,1.41063234,110290.0,110280.0,0.001]
[1756474681772,1.75185234,110290.0,110280.0,0.001]
[1756474681993,1.75063234,110290.0,110280.0,0.001]
[1756474682221,1.75063234,110290.0,110280.0,0.002]
[1756474682881,1.74869234,110290.0,110280.0,0.002]
[1756474683092,1.74869234,110290.0,110280.0,0.001]
[1756474683302,1.75063234,110290.0,110280.0,0.001]
[1756474683741,1.74869234,110290.0,110280.0,0.18235654]
[1756474683960,1.75063234,110290.0,110270.0,0.18475601]
[1756474684192,0.5232801,110290.0,110280.0,0.001]
[1756474684825,0.5232801,110290.0,110280.0,0.003]
[1756474685397,1.82321933,110290.0,110280.0,0.003]
[1756474685597,6.89781727,110290.0,110280.0,0.003]
[1756474686256,0.52135654,110280.0,110270.0,0.00014336]
[1756474686427,6.80568152,110280.0,110270.0,0.00014336]
[1756474686631,6.95517089,110280.0,110270.0,0.00014336]
[1756474686892,0.18142061,110250.0,110230.0,0.26596747]
[1756474687078,1.40877459,110240.0,110230.0,0.26596747]
[1756474687290,0.20952099,110250.0,110240.0,0.18142235]
[1756474687417,1.4452397,110250.0,110230.0,0.26596747]
[1756474687618,0.00836647,110250.0,110240.0,0.18693012]
[1756474687828,0.00836647,110250.0,110240.0,0.18677235]
[1756474688052,1.56735224,110270.0,110260.0,0.18138944]
[1756474688319,1.25499578,110270.0,110260.0,0.18673944]
[1756474688522,1.23571917,110270.0,110260.0,0.18673944]
[1756474688727,1.25873203,110270.0,110260.0,0.18673944]
[1756474689249,0.03137979,110270.0,110260.0,0.18673944]
[1756474689659,0.03137979,110270.0,110260.0,0.29597458]
[1756474689877,0.01673663,110270.0,110260.0,0.63597458]
[1756474690082,1.4319391,110300.0,110290.0,0.1813401]
[1756474690283,0.1813401,110290.0,110280.0,0.18135654]
[1756474690485,1.43374503,110290.0,110280.0,0.18135654]
[1756474690682,1.43171503,110290.0,110280.0,0.18135654]
[1756474690915,1.43171503,110290.0,110270.0,0.19365333]
[1756474691089,1.22735224,110280.0,110270.0,0.30288847]
[1756474691289,1.25037493,110280.0,110270.0,0.30499847]
[1756474691496,1.43173147,110280.0,110270.0,0.19576333]
[1756474691695,1.43173147,110280.0,110270.0,0.18348299]
[1756474691891,1.43376147,110280.0,110270.0,0.18137299]
[1756474692094,1.43376147,110280.0,110260.0,0.06976]
[1756474692095,0.18137299,110270.0,110260.0,0.06976]
[1756474692305,1.43377792,110270.0,110260.0,0.06976]
[1756474692915,1.43377792,110270.0,110260.0,0.25114944]
[1756474693116,1.43174792,110270.0,110260.0,0.06976]
[1756474693353,0.20439568,110270.0,110260.0,0.25114944]
[1756474693573,0.20439568,110270.0,110260.0,0.06976]
[1756474693574,1.43377792,110270.0,110260.0,0.06976]
[1756474693726,1.43174792,110270.0,110260.0,0.25114944]
[1756474693926,1.43377792,110270.0,110260.0,0.07076]
[1756474694290,1.43174792,110270.0,110260.0,0.25214944]
[1756474694899,1.43174792,110270.0,110260.0,0.25414944]
[1756474695258,1.43179045,110270.0,110260.0,0.25414944]
[1756474695691,1.25041803,110270.0,110260.0,0.25949944]
[1756474695903,0.02306579,110270.0,110260.0,0.25949944]
[1756474696321,0.02306579,110270.0,110260.0,0.25749944]
[1756474696520,0.02306579,110270.0,110260.0,0.25849944]
[1756474697084,0.02306579,110270.0,110260.0,0.25525944]
[1756474697292,0.02306579,110270.0,110260.0,0.26149944]
[1756474697504,1.25041803,110270.0,110260.0,0.26049944]
[1756474697697,1.25041803,110270.0,110260.0,0.25949944]
[1756474697861,1.25041803,110270.0,110260.0,0.26149944]
[1756474698061,1.25041803,110270.0,110260.0,0.26549944]
[1756474698496,0.02306579,110270.0,110260.0,0.26549944]
[1756474698692,1.25041803,110270.0,110260.0,0.26549944]
[1756474698927,0.02306579,110270.0,110260.0,0.26549944]
[1756474699129,1.25041803,110270.0,110260.0,0.26549944]
[1756474699494,0.02306579,110270.0,110260.0,0.36573458]
[1756474699908,0.02306579,110270.0,110260.0,0.36973458]
[1756474700125,0.01677528,110270.0,110260.0,0.36673458]
[1756474700542,1.22735224,110280.0,110270.0,0.18137299]
[1756474700761,1.25043509,110280.0,110270.0,0.18137299]
[1756474701157,1.25043509,110280.0,110270.0,0.18633299]
[1756474701550,1.25256509,110280.0,110270.0,0.18137299]
[1756474701915,1.25883058,110280.0,110270.0,0.18337299]
[1756474702538,1.25883058,110280.0,110270.0,0.18633299]
[1756474702539,0.03147834,110280.0,110270.0,0.18633299]
[1756474702743,1.25883058,110280.0,110270.0,0.18633299]
[1756474703146,1.25883058,110280.0,110270.0,0.18933299]
[1756474703285,1.25883058,110280.0,110270.0,0.19033299]
[1756474703684,1.42552959,110280.0,110270.0,0.18537299]
[1756474703891,1.24204305,110280.0,110270.0,0.18537299]
[1756474704531,1.24417305,110280.0,110270.0,0.18537299]
[1756474704963,1.42552959,110280.0,110270.0,0.18537299]
[1756474705104,1.42846959,110280.0,110270.0,0.18537299]
[1756474705305,1.42552959,110280.0,110270.0,0.004]
[1756474705543,1.42846959,110280.0,110270.0,0.18537299]
[1756474705858,1.44231736,110280.0,110270.0,0.18537299]
[1756474706064,1.26096082,110280.0,110270.0,0.18537299]
[1756474706470,1.25883082,110280.0,110270.0,0.19033299]
[1756474706675,0.03147858,110280.0,110270.0,0.29956813]
[1756474706881,1.42015381,110300.0,110280.0,0.18134095]
[1756474707119,1.41082234,110290.0,110280.0,0.18134095]
[1756474707401,1.44230633,110290.0,110280.0,0.18134095]
[1756474707628,1.26096623,110290.0,110280.0,0.18134095]
[1756474707843,0.03148399,110290.0,110280.0,0.18630095]
[1756474708067,1.25883623,110290.0,110280.0,0.18630095]
[1756474708499,0.03148399,110290.0,110280.0,0.29553609]
[1756474708719,0.03148399,110290.0,110280.0,0.18134095]
[1756474708720,1.26096623,110290.0,110280.0,0.18134095]
[1756474708923,1.25253945,110290.0,110280.0,0.18334095]
[1756474709137,1.25253945,110290.0,110280.0,0.18630095]
[1756474709556,1.23574803,110290.0,110280.0,0.18334095]
[1756474709776,1.23574803,110290.0,110280.0,0.18630095]
[1756474710206,1.25253405,110290.0,110280.0,0.18630095]
[1756474710434,1.23574803,110290.0,110280.0,0.18730095]
[1756474710848,1.05895576,110290.0,110280.0,0.18730095]
[1756474712790,0.00014328,110300.0,110290.0,0.1813401]
[1756474713000,1.25283577,110300.0,110290.0,0.1813401]
[1756474713221,1.25269851,110300.0,110290.0,0.1813401]
[1756474713442,0.90385823,110300.0,110290.0,0.1833401]
[1756474713663,0.02321627,110300.0,110290.0,0.36529524]
[1756474713864,0.00014328,110300.0,110290.0,0.36529524]
[1756474714294,0.00014328,110300.0,110290.0,0.62829524]
[1756474714678,0.87851196,110340.0,110330.0,0.18127435]
[1756474714896,0.90172118,110340.0,110330.0,0.18327435]
[1756474715135,0.90172153,110340.0,110330.0,0.18327435]
[1756474715352,1.24652355,110340.0,110330.0,0.18127435]
[1756474715875,1.4391354,110340.0,110320.0,0.25105079]
[1756474715994,1.41314664,110330.0,110310.0,0.18129079]
[1756474716212,1.22960503,110320.0,110310.0,0.18129079]
[1756474716412,1.23173503,110320.0,110310.0,0.18129079]
[1756474716607,1.41596582,110320.0,110310.0,0.18129079]
[1756474716847,1.23467503,110320.0,110310.0,0.18129079]
[1756474717114,1.23467503,110320.0,110300.0,0.25108355]
[1756474717115,1.4389935,110320.0,110300.0,0.25108355]
[1756474717358,1.41611951,110310.0,110300.0,0.06976]
[1756474717516,1.41611951,110310.0,110300.0,0.25108366]
[1756474717517,1.4306033,110310.0,110300.0,0.25108366]
[1756474717715,1.4297933,110310.0,110300.0,0.06976]
[1756474717958,0.18132366,110300.0,110280.0,0.26016877]
[1756474718157,0.18132366,110300.0,110280.0,0.34846509]
[1756474718158,1.23173503,110290.0,110280.0,0.34846509]
[1756474718364,1.41307513,110290.0,110280.0,0.06976]
[1756474718560,1.41601513,110290.0,110280.0,0.25111654]
[1756474718740,1.41307513,110290.0,110280.0,0.25111654]
[1756474719167,1.42982545,110290.0,110280.0,0.06976]
[1756474719337,1.43610714,110290.0,110280.0,0.25125982]
[1756474719819,1.43610714,110290.0,110280.0,0.06990328]
[1756474719820,1.43904714,110290.0,110280.0,0.06990328]
[1756474720040,1.43904714,110290.0,110280.0,0.25125982]
[1756474720705,1.43904714,110290.0,110280.0,0.07190328]
[1756474720916,1.43904714,110290.0,110280.0,0.00214328]
[1756474720917,1.77904714,110290.0,110280.0,0.00214328]
[1756474721128,1.80641323,110290.0,110280.0,0.00014328]
[1756474721501,1.83451361,110290.0,110280.0,0.00014328]
[1756474721727,1.83451361,110290.0,110280.0,0.00314328]
[1756474722155,0.54944211,110290.0,110280.0,0.00714328]
[1756474722301,1.77904714,110290.0,110280.0,0.00714328]
[1756474722780,1.78742087,110290.0,110280.0,0.00714328]
[1756474723217,1.78742088,110290.0,110280.0,0.00714328]
[1756474723431,1.78742088,110290.0,110280.0,0.00014328]
[1756474723635,1.78842088,110290.0,110280.0,0.00014328]
[1756474724765,0.55587585,110290.0,110280.0,0.00014328]
[1756474724955,1.60414078,110290.0,110280.0,0.18149982]
[1756474725361,1.78548088,110290.0,110280.0,0.18149982]
[1756474725514,1.60414078,110290.0,110280.0,0.18149982]
[1756474726029,1.78842088,110290.0,110280.0,0.00014328]
[1756474726263,6.84388735,110290.0,110280.0,0.00014328]
[1756474726590,0.18142235,110240.0,110230.0,0.027479]
[1756474726714,0.18142235,110240.0,110230.0,0.10112944]
[1756474726715,1.4193991,110240.0,110230.0,0.10112944]
[1756474726921,1.4215291,110240.0,110230.0,0.28256824]
[1756474727163,1.43827265,110240.0,110230.0,0.10112944]
[1756474727397,1.44121265,110240.0,110230.0,0.0002]
[1756474727812,1.43827265,110240.0,110230.0,0.1816388]
[1756474728142,1.44121265,110240.0,110230.0,0.0002]
[1756474728623,1.44748311,110240.0,110230.0,0.0012]
[1756474728837,6.78748311,110240.0,110230.0,0.0012]
[1756474729043,6.78748311,110240.0,110230.0,0.0022]
[1756474729044,6.9312459,110240.0,110230.0,0.0022]
[1756474729465,6.84294958,110240.0,110230.0,0.0022]
[1756474729879,6.81558349,110240.0,110230.0,0.0022]
[1756474730082,6.78748311,110240.0,110230.0,0.0022]
[1756474730324,6.78744151,110240.0,110230.0,0.0022]
[1756474730526,6.78744151,110240.0,110230.0,0.0012]
[1756474730734,1.78744151,110240.0,110230.0,0.0012]
[1756474731384,6.78744151,110240.0,110230.0,0.0012]
[1756474732440,6.78744151,110240.0,110230.0,0.0002]
[1756474732645,1.78450151,110240.0,110230.0,0.0002]
[1756474733055,1.78746151,110240.0,110230.0,0.0032]
[1756474733257,1.78746151,110240.0,110230.0,0.0002]
[1756474733759,1.78450151,110240.0,110230.0,0.0002]
[1756474734170,1.60094916,110240.0,110230.0,0.1837688]
[1756474734370,1.77610105,110240.0,110230.0,0.1868588]
[1756474734577,1.5946787,110240.0,110230.0,0.1837688]
[1756474734777,1.2546787,110240.0,110230.0,0.1868588]
[1756474734988,1.2546787,110240.0,110230.0,0.2566188]
[1756474735190,1.24630698,110240.0,110230.0,0.2566188]
[1756474735416,0.18139175,110260.0,110240.0,0.18142235]
[1756474735417,1.22960503,110250.0,110240.0,0.18142235]
[1756474735593,1.22960503,110250.0,110240.0,0.18664235]
[1756474735594,1.25457143,110250.0,110240.0,0.18664235]
[1756474735977,0.0249664,110250.0,110240.0,0.18664235]
[1756474736177,1.25457143,110250.0,110240.0,0.18664235]
[1756474736567,1.2462493,110250.0,110240.0,0.18664235]
[1756474736756,1.2462493,110250.0,110240.0,0.27493867]
[1756474736962,1.22960503,110250.0,110240.0,0.27893867]
[1756474737163,1.22960503,110270.0,110260.0,0.18137327]
[1756474737366,1.22960503,110270.0,110250.0,0.19045026]
[1756474737367,1.43798823,110270.0,110250.0,0.19045026]
[1756474737585,1.41099447,110260.0,110250.0,0.18137997]
[1756474737809,1.25456524,110260.0,110250.0,0.18137997]
[1756474738014,1.25456524,110260.0,110250.0,0.18350997]
[1756474738215,1.25456524,110260.0,110250.0,0.18659997]
[1756474739448,1.43595468,110260.0,110250.0,0.18659997]
[1756474739713,1.25456524,110260.0,110250.0,0.18659997]
[1756474739920,0.02496021,110260.0,110250.0,0.18659997]
[1756474740105,1.25456524,110260.0,110250.0,0.18659997]
[1756474740741,1.25456524,110260.0,110250.0,0.18759997]
[1756474740995,1.25456524,110260.0,110250.0,0.19059997]
[1756474741555,0.02496021,110260.0,110250.0,0.19059997]
[1756474741752,1.25456524,110260.0,110250.0,0.19059997]
[1756474742306,0.02496021,110260.0,110250.0,0.29983511]
[1756474742530,0.3401432,110280.0,110270.0,0.18137299]
[1756474742747,1.5947161,110280.0,110270.0,0.18350299]
[1756474742924,1.2547161,110280.0,110270.0,0.18659299]
[1756474744557,1.43812264,110280.0,110260.0,0.25113465]
[1756474744750,1.23187229,110270.0,110260.0,0.25113465]
[1756474744951,1.2566229,110270.0,110260.0,0.25113465]
[1756474745153,1.43799589,110270.0,110260.0,0.25113465]
[1756474745605,1.2566229,110270.0,110260.0,0.25113465]
[1756474745806,1.43799589,110270.0,110260.0,0.25113465]
[1756474745961,1.2566229,110270.0,110260.0,0.25113465]
[1756474746162,1.43799589,110270.0,110260.0,0.25113465]
[1756474746369,1.75598802,110270.0,110260.0,0.001]
[1756474746588,1.78099576,110270.0,110260.0,0.001]
[1756474746789,0.18138944,110260.0,110250.0,0.18137997]
[1756474746952,1.43805221,110260.0,110250.0,0.18137997]
[1756474747565,1.43807228,110260.0,110250.0,0.18137997]
[1756474748062,1.25668284,110260.0,110250.0,0.18350997]
[1756474748261,1.25668284,110260.0,110250.0,0.18659997]
[1756474748262,0.02502781,110260.0,110250.0,0.18659997]
[1756474748566,0.02502781,110260.0,110250.0,0.29583511]
[1756474749380,1.25463284,110260.0,110250.0,0.18659997]
[1756474749577,1.25668284,110260.0,110250.0,0.18137997]
[1756474749802,1.5263686,110260.0,110250.0,0.003]
[1756474750024,1.5263686,110260.0,110250.0,0.18540589]
[1756474750025,1.43807228,110260.0,110250.0,0.18540589]
[1756474750259,0.02707781,110260.0,110250.0,0.18540589]
[1756474750460,1.44033954,110260.0,110250.0,0.18540589]
[1756474750582,1.44103228,110260.0,110250.0,0.004]
[1756474750781,1.78729724,110260.0,110250.0,0.004]
[1756474751039,1.87559356,110260.0,110250.0,0.004]
[1756474751274,0.52142235,110240.0,110230.0,0.0002]
[1756474751475,1.77605519,110240.0,110230.0,0.0002]
[1756474751650,6.81543002,110240.0,110230.0,0.0002]
[1756474751984,6.84279611,110240.0,110230.0,0.0002]
[1756474752164,6.93109243,110240.0,110230.0,0.0002]
[1756474752789,6.95032637,110240.0,110230.0,0.0002]
[1756474753034,1.43914421,110230.0,110220.0,0.00043639]
[1756474753229,6.47865232,110230.0,110220.0,0.00057922]
[1756474753437,6.45556194,110230.0,110220.0,0.00057922]
[1756474753648,6.46464662,110230.0,110220.0,0.00057922]
[1756474754488,5.23504159,110230.0,110220.0,0.00057922]
[1756474754690,6.46464662,110230.0,110220.0,0.00057922]
[1756474755065,6.492747,110230.0,110220.0,0.00057922]
[1756474756123,6.58104332,110230.0,110220.0,0.00057922]
[1756474756431,0.52145527,110220.0,110210.0,0.00166206]
[1756474756594,6.90396759,110220.0,110210.0,0.00166206]
[1756474756768,6.9402499,110220.0,110210.0,0.00166206]
[1756474756978,7.02854622,110220.0,110210.0,0.00166206]
[1756474757380,7.06369182,110220.0,110210.0,1e-08]
[1756474757601,7.16367355,110220.0,110210.0,1e-08]
[1756474757969,1.7511097,110190.0,110180.0,0.0721143]
[1756474758174,1.79222633,110190.0,110180.0,0.0721143]
[1756474758375,0.52152114,110180.0,110170.0,0.03508]
[1756474758711,6.82380506,110180.0,110170.0,0.03508]
[1756474758917,6.85315115,110180.0,110170.0,0.03508]
[1756474759331,6.89340966,110180.0,110170.0,0.03508]
[1756474759681,6.87247084,110180.0,110170.0,0.03508]
[1756474759882,6.81700437,110180.0,110170.0,0.03508]
[1756474761149,6.84510475,110180.0,110170.0,0.03508]
[1756474761473,6.87247084,110180.0,110170.0,0.03608]
[1756474762250,6.87247084,110180.0,110170.0,0.03508]
[1756474762461,6.89333792,110180.0,110170.0,0.03508]
[1756474762695,0.5215541,110160.0,110150.0,0.0002]
[1756474762927,8.18024204,110160.0,110150.0,0.0002]
[1756474763134,8.18527204,110160.0,110150.0,0.0002]
[1756474764237,8.15790595,110160.0,110150.0,0.0002]
[1756474764408,8.20137911,110160.0,110150.0,0.0002]
[1756474764670,8.20237911,110160.0,110150.0,0.0002]
[1756474765069,8.21065292,110160.0,110150.0,0.0002]
[1756474765911,8.20885117,110160.0,110150.0,0.0002]
[1756474766475,8.22306536,110160.0,110150.0,0.0002]
[1756474766825,6.9641117,110160.0,110150.0,0.0002]
[1756474766958,6.9671617,110160.0,110150.0,0.0002]
[1756474767169,8.19051227,110160.0,110150.0,0.0002]
[1756474767351,8.19654516,110160.0,110150.0,0.0002]
[1756474767767,8.19654451,110160.0,110150.0,0.0002]
[1756474768597,8.22284314,110160.0,110150.0,0.0002]
[1756474769035,8.19654451,110160.0,110150.0,0.0002]
[1756474769995,6.96388948,110160.0,110150.0,0.0002]
[1756474770207,6.96190948,110160.0,110150.0,0.0002]
[1756474770414,8.19654451,110160.0,110150.0,0.0002]
[1756474770839,8.19652364,110160.0,110150.0,0.0002]
[1756474771042,6.96386861,110160.0,110150.0,0.0002]
[1756474771175,6.95363629,110160.0,110150.0,0.00222]
[1756474771388,5.71783665,110160.0,110150.0,0.00531]
[1756474771702,6.82282335,110160.0,110150.0,0.00531]
[1756474771914,6.82282335,110160.0,110150.0,0.00222]
[1756474772076,6.82480335,110160.0,110150.0,0.0002]
[1756474772285,8.05745838,110160.0,110150.0,0.0002]
[1756474772477,8.06364689,110160.0,110150.0,0.0002]
[1756474772938,1.75117561,110150.0,110140.0,0.0011]
[1756474773110,6.94656562,110150.0,110140.0,0.0011]
[1756474773473,6.94854562,110150.0,110140.0,0.0011]
[1756474773675,6.94351792,110150.0,110140.0,0.00312]
[1756474773877,6.94549792,110150.0,110140.0,0.0011]
[1756474774098,6.94854792,110150.0,110140.0,0.0011]
[1756474774327,6.98310663,110150.0,110140.0,1e-08]
[1756474774530,7.0796567,110150.0,110140.0,1e-08]
[1756474774730,1.77680334,110140.0,110130.0,0.002]
[1756474774941,6.92602057,110140.0,110130.0,0.002]
[1756474775146,0.18162005,110120.0,110110.0,0.00192023]
[1756474775354,6.51651194,110120.0,110110.0,0.00192023]
[1756474775613,6.52154194,110120.0,110110.0,0.00192023]
[1756474776031,6.87074791,110120.0,110110.0,0.00239644]
[1756474776233,7.01095411,110120.0,110110.0,0.00239644]
[1756474776569,0.20793517,110110.0,110100.0,0.0002]
[1756474776773,1.41130758,110070.0,110060.0,0.006733]
[1756474776996,1.44262454,110070.0,110060.0,0.18171906]
[1756474777160,1.44262454,110070.0,110060.0,0.18373906]
[1756474777517,1.44262454,110070.0,110060.0,0.00511]